[Event "71st RUS-ch Superfinal Women 2021"]
[Site "Ufa"]
[Date "2021.10.12"]
[Round "4.1"]
[White "Ovod, Evgenija"]
[Black "Voit, Daria"]
[Result "1-0"]
[ECO "B10"]
[WhiteElo "2331"]
[BlackElo "2357"]
[Annotator "NA"]
[PlyCount "151"]
[EventDate "2021.10.09"]
[EventType "tourn"]
[EventCountry "RUS"]
[SourceTitle "playchess.com"]
[Source "ChessBase"]
[SourceQuality "1"]
[TimeControl "40/5400+30:1800+30"]

1. e4 {[%emt 0:00:02]} c6 {[%emt 0:00:03]} 2. Nf3 {[%emt 0:00:12]} d5 {[%emt 0:
00:08]} 3. d3 {[%emt 0:00:06]} dxe4 {[%emt 0:00:12]} 4. dxe4 {[%emt 0:00:05]}
Qxd1+ {[%emt 0:00:03]} 5. Kxd1 {[%emt 0:00:06]} Nf6 {[%emt 0:00:05]} 6. Nbd2 {
[%emt 0:00:17]} Nbd7 {[%emt 0:02:12]} 7. Ne1 {[%emt 0:00:17]} Nc5 {[%emt 0:15:
30]} 8. f3 {[%emt 0:00:08]} g6 {[%emt 0:04:49]} 9. a4 {[%emt 0:12:25]} Bg7 {
[%emt 0:03:38]} 10. a5 {[%emt 0:08:11]} Be6 {[%emt 0:06:01]} 11. Nd3 {[%emt 0:
05:02]} Nfd7 {[%emt 0:01:48]} 12. Nf4 {[%emt 0:02:11]} Ne5 {[%emt 0:06:58]} 13.
Nxe6 {[%emt 0:04:27]} Nxe6 {[%emt 0:00:15]} 14. c3 {[%emt 0:00:27]} Bh6 {
[%emt 0:25:07]} 15. Kc2 {[%emt 0:00:44]} Rd8 {[%emt 0:01:14]} 16. Nc4 {[%emt 0:
03:24]} Bxc1 {[%emt 0:02:38]} 17. Rxc1 {[%emt 0:00:03]} Nxc4 {[%emt 0:00:50]}
18. Bxc4 {[%emt 0:00:05]} Nc7 {[%emt 0:01:13]} 19. f4 {[%emt 0:00:27]} e6 {
[%emt 0:00:25]} 20. g4 {[%emt 0:04:41]} Ke7 {[%emt 0:03:56]} 21. Rce1 {[%emt 0:
00:38]} f6 {[%emt 0:04:31]} 22. h4 {[%emt 0:03:08]} h6 {[%emt 0:09:29]} 23. b4
{[%emt 0:09:23]} e5 {[%emt 0:03:01]} 24. f5 {[%emt 0:01:01]} g5 {[%emt 0:00:04]
} 25. Rh2 {[%emt 0:00:26]} gxh4 {[%emt 0:01:11]} 26. Rxh4 {[%emt 0:00:12]} Kf8
{[%emt 0:00:07]} 27. Rb1 {[%emt 0:25:04]} a6 {[%emt 0:00:48]} 28. Rbh1 {
[%emt 0:01:46]} Kg7 {[%emt 0:00:03]} 29. R4h3 {[%emt 0:00:59]} Ne8 {[%emt 0:06:
01]} 30. Rd3 {[%emt 0:06:27]} Rxd3 $1 {[%emt 0:00:08]} ({Wrong is} 30... Nd6 $2
{[#]} 31. Rhd1 $1 $18) 31. Bxd3 {[%emt 0:00:15]} Nd6 {[%emt 0:00:14]} 32. Rd1 {
[%emt 0:00:08]} Rd8 {[%emt 0:03:05]} 33. Bc4 {[%emt 0:04:40]} Kf8 $1 {[%emt 0:
00:02]} 34. Be6 {[%emt 0:01:02]} Ke7 {[%emt 0:00:10]} 35. Re1 {[%emt 0:00:39]}
Nb5 {[%emt 0:00:53]} 36. Rh1 {[%emt 0:01:03]} Rh8 {[%emt 0:00:03]} 37. Rh3 {
[%emt 0:02:04]} Nc7 {[%emt 0:00:24]} 38. Bb3 {[%emt 0:04:00]} Nb5 {[%emt 0:00:
17]} 39. Be6 {[%emt 0:02:08]} Nc7 {[%emt 0:00:26]} 40. Bc4 {[%emt 0:00:00]} Ne8
{[%emt 0:00:00]} 41. Kd3 {[%emt 0:05:46]} Nd6 {[%emt 0:06:17]} 42. Be6 {
[%emt 0:00:11]} Rh7 {[%emt 0:00:36]} 43. Rh2 {[%emt 0:10:45]} Rh8 {[%emt 0:00:
21]} 44. Rh1 {[%emt 0:00:15]} Rh7 {[%emt 0:04:16]} 45. Ke3 {[%emt 0:00:07]} Rh8
{[%emt 0:00:37]} 46. c4 {[%emt 0:00:22]} Nf7 {[%emt 0:11:56]} 47. Bxf7 {
[%emt 0:01:32]} Kxf7 {[%emt 0:00:03]} 48. b5 {[%emt 0:00:05]} cxb5 {[%emt 0:01:
34]} 49. cxb5 {[%emt 0:00:07]} axb5 {[%emt 0:00:19]} 50. Rb1 {[%emt 0:00:03]}
Rd8 {[%emt 0:01:19]} 51. Rxb5 {[%emt 0:00:09]} Rd7 {[%emt 0:00:03]} 52. Rb6 {
[%emt 0:03:49]} Ke7 {[%emt 0:01:34]} 53. Rb3 {[%emt 0:01:36]} Ke8 {[%emt 0:02:
40]} 54. Rb2 {[%emt 0:00:55]} Kf8 {[%emt 0:01:25]} 55. Rb1 {[%emt 0:00:31]} Kf7
{[%emt 0:00:50]} 56. Ra1 {[%emt 0:01:53]} Kf8 {[%emt 0:01:09]} 57. Ra2 {
[%emt 0:00:11]} Kf7 {[%emt 0:02:42]} 58. Rh2 {[%emt 0:04:20]} Kg7 {[%emt 0:00:
02]} 59. Rd2 {[%emt 0:00:07]} Rc7 {[%emt 0:00:01]} 60. Kd3 {[%emt 0:00:21]} Rc5
{[%emt 0:00:16]} 61. Rb2 {[%emt 0:00:08]} Rxa5 {[%emt 0:00:29]} 62. Rxb7+ {
[%emt 0:00:05]} Kg8 {[%emt 0:00:54]} 63. Kc4 {[%emt 0:00:10]} Ra4+ {[%emt 0:02:
36]} 64. Kd5 {[%emt 0:02:38]} Rd4+ $2 {[%emt 0:00:02]} (64... Kf8 $11) 65. Ke6
$18 {[%emt 0:00:07]} Rxe4 {[%emt 0:00:04]} 66. g5 {[%emt 0:03:09]} fxg5 {
[%emt 0:00:18]} 67. f6 {[%emt 0:00:42]} Rf4 {[%emt 0:00:38]} 68. Rb8+ {[%emt 0:
00:14]} Kh7 {[%emt 0:00:06]} 69. f7 {[%emt 0:00:03]} g4 {[%emt 0:03:07]} 70.
f8=Q {[%emt 0:00:06]} Rxf8 {[%emt 0:00:04]} 71. Rxf8 {[%emt 0:00:03]} e4 {
[%emt 0:00:53]} 72. Kf5 {[%emt 0:01:13]} g3 {[%emt 0:00:08]} 73. Rf7+ {[%emt 0:
00:05]} Kh8 {[%emt 0:00:40]} 74. Rf6 {[%emt 0:00:51]} e3 {[%emt 0:00:48]} 75.
Rxh6+ {[%emt 0:00:05]} Kg7 {[%emt 0:00:02]} 76. Rg6+ {[%emt 0:00:05]} 1-0

[Event "71st RUS-ch Superfinal Women 2021"]
[Site "Ufa"]
[Date "2021.10.12"]
[Round "4.4"]
[White "Gunina, Valentina"]
[Black "Garifullina, Leya"]
[Result "1/2-1/2"]
[ECO "D41"]
[WhiteElo "2462"]
[BlackElo "2409"]
[Annotator "ChessBase"]
[PlyCount "115"]
[EventDate "2021.10.09"]
[EventType "tourn"]
[EventCountry "RUS"]
[SourceTitle "playchess.com"]
[Source "ChessBase"]
[SourceQuality "1"]
[TimeControl "40/5400+30:1800+30"]

1. d4 {[%emt 0:00:05]} Nf6 {[%emt 0:00:11]} 2. c4 {[%emt 0:00:12]} e6 {[%emt 0:
00:10]} 3. Nf3 {[%emt 0:00:07]} d5 {[%emt 0:00:06]} 4. Nc3 {[%emt 0:00:11]} c5
{[%emt 0:00:14]} 5. cxd5 {[%emt 0:00:15]} cxd4 {[%emt 0:00:06]} 6. Qxd4 {
[%emt 0:00:24]} exd5 {[%emt 0:00:17]} 7. Bg5 {[%emt 0:00:08]} Be7 {[%emt 0:00:
06]} 8. e3 {[%emt 0:00:07]} O-O {[%emt 0:00:33]} 9. Qa4 {[%emt 0:00:06]} h6 {
[%emt 0:00:57]} 10. Bh4 {[%emt 0:00:07]} Qb6 {[%emt 0:00:23]} 11. Qb5 {[%emt 0:
00:22]} Nc6 {[%emt 0:00:30]} 12. Rd1 {[%emt 0:14:20]} Be6 {[%emt 0:02:26]} 13.
Bxf6 {[%emt 0:04:43]} Bxf6 {[%emt 0:07:41]} 14. Nxd5 {[%emt 0:03:32]} Bxd5 {
[%emt 0:00:39]} 15. Rxd5 {[%emt 0:01:07]} Bxb2 {[%emt 0:00:33]} 16. Bc4 {
[%emt 0:06:23]} Nb4 {[%emt 0:07:00]} 17. Qxb6 {[%emt 0:11:50]} axb6 {[%emt 0:
00:24]} 18. Rd7 {[%emt 0:00:16]} Rac8 {[%emt 0:16:18]} 19. Bb3 {[%emt 0:00:54]}
Rc1+ {[%emt 0:00:48]} 20. Rd1 {[%emt 0:03:58]} Rxd1+ {[%emt 0:00:42]} 21. Kxd1
{[%emt 0:00:14]} Ra8 {[%emt 0:01:16]} 22. Kd2 {[%emt 0:00:33]} Nxa2 {[%emt 0:
02:39]} 23. Rb1 {[%emt 0:03:29]} Bc3+ {[%emt 0:01:46]} 24. Kd3 {[%emt 0:01:52]}
Bf6 {[%emt 0:00:27]} 25. Bc4 {[%emt 0:23:24]} Nc3 {[%emt 0:03:32]} 26. Rxb6 {
[%emt 0:07:04]} Na4 {[%emt 0:01:15]} 27. Rb4 {[%emt 0:00:56]} Nb2+ {[%emt 0:10:
29]} 28. Ke2 {[%emt 0:00:54]} Nxc4 {[%emt 0:03:31]} 29. Rxc4 {[%emt 0:00:03]}
Ra2+ {[%emt 0:00:07]} 30. Nd2 {[%emt 0:02:15]} b5 {[%emt 0:00:17]} 31. Rc8+ {
[%emt 0:00:55]} Kh7 {[%emt 0:00:04]} 32. Kd3 {[%emt 0:02:15]} Ra3+ {[%emt 0:02:
25]} 33. Ke2 {[%emt 0:03:00]} Ra2 {[%emt 0:01:26]} 34. Kd1 {[%emt 0:02:44]} b4
{[%emt 0:01:22]} 35. Rc2 {[%emt 0:00:40]} Ra3 {[%emt 0:01:20]} 36. Ne4 {
[%emt 0:03:56]} b3 {[%emt 0:13:01]} 37. Rc1 {[%emt 0:04:04]} Be5 {[%emt 0:05:
31]} 38. Rb1 {[%emt 0:00:26]} Bxh2 {[%emt 0:04:08]} 39. g3 {[%emt 0:00:16]} Ra2
{[%emt 0:01:14]} 40. Ke1 {[%emt 0:00:00]} Bg1 {[%emt 0:00:00]} 41. Kf1 {
[%emt 0:04:01]} f5 {[%emt 0:06:49]} 42. Kxg1 {[%emt 0:05:10]} fxe4 {[%emt 0:00:
05]} 43. Rxb3 {[%emt 0:00:04]} Kg6 {[%emt 0:00:07]} 44. Kg2 {[%emt 0:00:30]}
Kf5 {[%emt 0:01:08]} 45. Rb5+ {[%emt 0:00:23]} Kg4 {[%emt 0:01:16]} 46. Rb6 {
[%emt 0:01:00]} Kf5 {[%emt 0:00:09]} 47. Rb8 {[%emt 0:00:54]} Kg4 {[%emt 0:02:
27]} 48. Re8 {[%emt 0:02:22]} Ra4 {[%emt 0:00:26]} 49. Re6 {[%emt 0:00:13]} Kf5
{[%emt 0:00:11]} 50. Re7 {[%emt 0:00:10]} g5 {[%emt 0:00:28]} 51. Kh3 {[%emt 0:
01:05]} h5 {[%emt 0:00:05]} 52. Re8 {[%emt 0:01:06]} Kf6 {[%emt 0:00:35]} 53.
Rb8 {[%emt 0:05:42]} Ra6 {[%emt 0:02:17]} 54. Rb4 {[%emt 0:02:37]} Re6 {
[%emt 0:00:16]} 55. Kg2 {[%emt 0:01:02]} Kf5 {[%emt 0:00:50]} 56. Rb5+ {
[%emt 0:00:11]} Kg6 {[%emt 0:01:04]} 57. Ra5 {[%emt 0:00:41]} Kf6 {[%emt 0:00:
15]} 58. Rb5 {[%emt 0:00:29]} 1/2-1/2

[Event "71st RUS-ch Superfinal Women 2021"]
[Site "Ufa"]
[Date "2021.10.13"]
[Round "5.1"]
[White "Guseva, Marina"]
[Black "Ovod, Evgenija"]
[Result "0-1"]
[ECO "E06"]
[WhiteElo "2394"]
[BlackElo "2331"]
[Annotator "NA"]
[PlyCount "177"]
[EventDate "2021.10.09"]
[EventType "tourn"]
[EventCountry "RUS"]
[SourceTitle "playchess.com"]
[Source "ChessBase"]
[SourceQuality "1"]
[TimeControl "40/5400+30:1800+30"]

1. d4 {[%emt 0:00:02]} d5 {[%emt 0:00:04]} 2. c4 {[%emt 0:00:05]} e6 {[%emt 0:
00:03]} 3. Nf3 {[%emt 0:00:04]} Nf6 {[%emt 0:00:05]} 4. g3 {[%emt 0:00:04]} Be7
{[%emt 0:00:05]} 5. Bg2 {[%emt 0:00:04]} O-O {[%emt 0:00:05]} 6. O-O {[%emt 0:
00:03]} dxc4 {[%emt 0:00:05]} 7. Qc2 {[%emt 0:00:13]} a6 {[%emt 0:00:06]} 8. a4
{[%emt 0:00:05]} Bd7 {[%emt 0:00:07]} 9. Qxc4 {[%emt 0:00:07]} Bc6 {[%emt 0:00:
05]} 10. Bg5 {[%emt 0:00:06]} Nbd7 {[%emt 0:00:17] now scores much better than
the old 10...Bd5.} 11. Nc3 {[%emt 0:00:16]} a5 {[%emt 0:03:43]} 12. Rfd1 {
[%emt 0:03:01]} h6 {[%emt 0:05:51]} 13. Bxf6 {[%emt 0:00:12]} Nxf6 {[%emt 0:00:
19]} 14. Ne5 {[%emt 0:09:50]} Bxg2 {[%emt 0:00:10]} 15. Kxg2 {[%emt 0:00:05]}
c6 {[%emt 0:00:07]} 16. e4 {[%emt 0:05:18] [#]} Bb4 $146 {[%emt 0:13:06]} ({
Predecessor:} 16... Qb6 17. Qe2 Rfd8 18. Nf3 Bb4 19. Rac1 Qa6 20. Qc2 Rac8 21.
e5 Nd5 22. Ne4 Be7 {1/2-1/2 (68) Melkumyan,H (2632)-Hansen,E (2573) London 2015
}) 17. Qe2 {[%emt 0:07:17]} Qc7 {[%emt 0:07:48]} 18. Rac1 {[%emt 0:03:11]} Rfd8
{[%emt 0:06:02]} 19. Qf3 {[%emt 0:12:05]} Ne8 {[%emt 0:12:33]} 20. h4 {[%emt 0:
08:38]} Qe7 {[%emt 0:02:26]} 21. Ne2 {[%emt 0:05:08]} Nc7 {[%emt 0:08:00]} 22.
Rd3 {[%emt 0:10:05]} Na6 {[%emt 0:04:28]} 23. Qh5 {[%emt 0:11:48]} Bd6 {
[%emt 0:11:34]} 24. Nc4 {[%emt 0:00:30]} Bc7 {[%emt 0:03:41]} 25. Qf3 {[%emt 0:
09:10]} Nb4 {[%emt 0:03:28]} 26. Rd2 {[%emt 0:00:28]} Rd7 {[%emt 0:01:05]} 27.
Rcd1 {[%emt 0:00:57]} Rad8 {[%emt 0:02:31]} 28. Nc3 {[%emt 0:00:35]} Qf6 {
[%emt 0:10:20]} 29. Qe3 {[%emt 0:09:58]} Qe7 {[%emt 0:02:21]} 30. f4 {[%emt 0:
01:31]} f5 {[%emt 0:00:50]} 31. Qf3 {[%emt 0:01:09]} Qf7 {[%emt 0:02:01]} 32.
Qe2 {[%emt 0:02:10]} Qg6 {[%emt 0:00:23]} 33. h5 {[%emt 0:00:54]} Qf7 {[%emt 0:
00:27]} 34. b3 {[%emt 0:00:50]} Qf6 {[%emt 0:02:08]} 35. Ne5 {[%emt 0:00:38]}
Bxe5 {[%emt 0:00:30]} 36. dxe5 {[%emt 0:00:43]} Rxd2 {[%emt 0:00:23]} 37. Rxd2
{[%emt 0:00:10]} Rxd2 {[%emt 0:00:06]} 38. Qxd2 {[%emt 0:00:54]} Qf7 {[%emt 0:
00:56]} 39. Qd8+ {[%emt 0:00:46]} Kh7 {[%emt 0:00:04]} 40. Qxa5 {[%emt 0:00:00]
} Nc2 {[%emt 0:00:00]} 41. Qc5 {[%emt 0:04:45]} Qxh5 {[%emt 0:03:27]} 42. Qf2 {
[%emt 0:00:51]} Nb4 {[%emt 0:02:14]} 43. Qd4 {[%emt 0:01:30]} Nc2 {[%emt 0:02:
18]} 44. Qd2 {[%emt 0:02:16]} Nb4 {[%emt 0:00:10]} 45. a5 {[%emt 0:07:57]} Qf7
{[%emt 0:07:09]} 46. Qd4 {[%emt 0:02:13]} Nc2 {[%emt 0:05:19]} 47. Qf2 {
[%emt 0:01:17]} Nb4 {[%emt 0:00:06]} 48. Qc5 {[%emt 0:00:46]} Na6 {[%emt 0:02:
11]} 49. Qd4 {[%emt 0:01:34]} Qc7 {[%emt 0:03:01]} 50. exf5 {[%emt 0:01:36]}
exf5 {[%emt 0:00:14]} 51. b4 {[%emt 0:08:14]} c5 {[%emt 0:00:17]} 52. bxc5 {
[%emt 0:00:20]} Nxc5 {[%emt 0:00:50]} 53. Qb4 {[%emt 0:02:33]} Qc6+ {[%emt 0:
01:46]} 54. Kh2 {[%emt 0:00:39]} Nd3 {[%emt 0:00:53]} 55. Qd4 {[%emt 0:00:47]}
Ne1 {[%emt 0:03:08]} 56. Qd5 {[%emt 0:00:04]} Qxc3 {[%emt 0:00:12]} 57. e6 {
[%emt 0:00:09]} Nf3+ $2 {[%emt 0:05:22]} (57... Qf6 $19 {and Black stays
clearly on top.} 58. Kg1 Nc2) 58. Kh3 $1 {[%emt 0:02:01]} Nd4 {[%emt 0:00:21]}
59. e7 {[%emt 0:00:14] [#]} Qe1 $17 {[%emt 0:01:15]} 60. e8=Q {[%emt 0:00:35]}
Qxe8 {[%emt 0:00:13]} 61. Qxd4 {[%emt 0:00:02]} Qh5+ {[%emt 0:01:23]} 62. Kg2 {
[%emt 0:00:04]} Qe2+ {[%emt 0:00:03]} 63. Kh3 {[%emt 0:00:58]} Qe4 {[%emt 0:00:
25]} 64. Qd1 {[%emt 0:00:46]} Qb4 {[%emt 0:00:53]} 65. Qd5 {[%emt 0:00:30]} Qe4
{[%emt 0:00:20]} 66. Qd1 {[%emt 0:00:06]} Qc4 {[%emt 0:00:55]} 67. Qb1 {
[%emt 0:01:02]} Qd5 {[%emt 0:00:06]} 68. Qa1 {[%emt 0:00:09]} h5 {[%emt 0:00:
30]} 69. Kh2 {[%emt 0:01:02]} h4 {[%emt 0:00:34]} 70. Qc3 {[%emt 0:00:41]} h3 {
[%emt 0:00:46]} 71. Qb2 {[%emt 0:00:27]} Qxa5 {[%emt 0:00:24]} 72. Kxh3 {
[%emt 0:00:20]} Qd5 {[%emt 0:00:16]} 73. Kh2 {[%emt 0:00:18]} b5 {[%emt 0:00:
17]} 74. Qe2 {[%emt 0:00:17]} Kh6 {[%emt 0:00:35]} 75. Qe7 {[%emt 0:00:17]} Qe4
{[%emt 0:00:57]} 76. Qd6+ {[%emt 0:00:49]} Kh7 {[%emt 0:00:10]} 77. Qd7 {
[%emt 0:01:01]} b4 {[%emt 0:00:06]} 78. Qf7 {[%emt 0:00:03]} Kh6 {[%emt 0:00:
23]} 79. Qb3 {[%emt 0:00:13]} Qe2+ {[%emt 0:01:08]} 80. Kh3 {[%emt 0:00:12]}
Qe1 {[%emt 0:00:24]} 81. Qd5 {[%emt 0:00:56]} Qe4 {[%emt 0:00:23]} 82. Qd6+ {
[%emt 0:00:04]} Kh7 {[%emt 0:00:20]} 83. g4 {[%emt 0:01:31]} Qh1+ {[%emt 0:00:
42]} 84. Kg3 {[%emt 0:00:03]} Qg1+ {[%emt 0:00:07]} 85. Kh3 {[%emt 0:00:59]}
Qxg4+ {[%emt 0:00:31]} 86. Kh2 {[%emt 0:00:03]} Qe2+ {[%emt 0:00:45]} 87. Kg3 {
[%emt 0:00:03]} b3 {[%emt 0:00:26]} 88. Qb6 {[%emt 0:01:26]} b2 {[%emt 0:00:39]
} 89. Qc5 {[%emt 0:00:33]} 0-1

[Event "71st RUS-ch Superfinal Women 2021"]
[Site "Ufa"]
[Date "2021.10.13"]
[Round "5.5"]
[White "Pogonina, Natalija"]
[Black "Bodnaruk, Anastasia"]
[Result "1-0"]
[ECO "A05"]
[WhiteElo "2467"]
[BlackElo "2415"]
[Annotator "ChessBase"]
[PlyCount "94"]
[EventDate "2021.10.09"]
[EventType "tourn"]
[EventCountry "RUS"]
[SourceTitle "playchess.com"]
[Source "ChessBase"]
[SourceQuality "1"]
[TimeControl "40/5400+30:1800+30"]

1. Nf3 {[%emt 0:00:07]} Nf6 {[%emt 0:00:12]} 2. c4 {[%emt 0:00:24]} g6 {
[%emt 0:00:10]} 3. Nc3 {[%emt 0:00:29]} Bg7 {[%emt 0:00:05]} 4. g3 {[%emt 0:00:
39]} O-O {[%emt 0:00:31]} 5. Bg2 {[%emt 0:00:08]} d6 {[%emt 0:00:51]} 6. O-O {
[%emt 0:00:20]} Nc6 {[%emt 0:00:28]} 7. d3 {[%emt 0:00:23]} e5 {[%emt 0:00:53]}
8. Rb1 {[%emt 0:00:23]} a5 {[%emt 0:01:10]} 9. b3 {[%emt 0:00:42]} h6 {[%emt 0:
04:03]} 10. Bb2 {[%emt 0:00:51]} Ne8 {[%emt 0:11:19]} 11. Nb5 {[%emt 0:18:50]}
f5 {[%emt 0:02:53]} 12. d4 {[%emt 0:04:22]} e4 {[%emt 0:01:22]} 13. Ne1 {
[%emt 0:01:34]} d5 {[%emt 0:04:14]} 14. Nc2 {[%emt 0:12:18]} Ne7 {[%emt 0:08:
47]} 15. Ne3 {[%emt 0:06:37]} c6 {[%emt 0:03:00]} 16. Nc3 {[%emt 0:00:42]} Nf6
{[%emt 0:21:54]} 17. cxd5 {[%emt 0:00:53]} cxd5 {[%emt 0:00:34]} 18. Ba3 {
[%emt 0:01:02]} Be6 {[%emt 0:01:59]} 19. Rc1 {[%emt 0:03:46]} g5 {[%emt 0:07:
50]} 20. Bh3 {[%emt 0:05:10]} g4 {[%emt 0:10:09]} 21. Bg2 {[%emt 0:00:04]} Rf7
{[%emt 0:01:23]} 22. f3 {[%emt 0:06:10]} gxf3 {[%emt 0:02:48]} 23. exf3 {
[%emt 0:00:10]} Nc6 {[%emt 0:01:01]} 24. Ne2 {[%emt 0:05:35]} exf3 {[%emt 0:00:
39]} 25. Bxf3 {[%emt 0:01:52]} Ne4 {[%emt 0:00:50]} 26. Bb2 {[%emt 0:00:19]}
Qb6 {[%emt 0:02:59]} 27. Kg2 {[%emt 0:00:50]} Rd8 {[%emt 0:04:46]} 28. Nf4 {
[%emt 0:05:00]} Ne7 {[%emt 0:03:06]} 29. Qd3 {[%emt 0:01:43]} Qd6 {[%emt 0:00:
58]} 30. Ba3 {[%emt 0:05:38]} Qxa3 {[%emt 0:02:14]} 31. Nxe6 {[%emt 0:00:06]}
Rd7 {[%emt 0:02:12]} 32. Nxg7 {[%emt 0:01:55]} Kxg7 {[%emt 0:00:11]} 33. Qb5 {
[%emt 0:05:30]} Nc6 {[%emt 0:00:45]} 34. Bxe4 {[%emt 0:06:27]} fxe4 {[%emt 0:
00:04]} 35. Qe2 {[%emt 0:00:06]} Nxd4 {[%emt 0:01:08]} 36. Qg4+ {[%emt 0:00:27]
} Kh7 {[%emt 0:00:04]} 37. Nxd5 {[%emt 0:01:28]} Qb2+ {[%emt 0:00:45]} 38. Kh3
{[%emt 0:02:33]} Nf3 {[%emt 0:00:35]} 39. Qxe4+ {[%emt 0:00:37]} Kg7 {[%emt 0:
00:02]} 40. Rxf3 {[%emt 0:00:00]} Qxc1 {[%emt 0:00:00]} 41. Qe5+ {[%emt 0:13:
02]} Kg6 {[%emt 0:05:23]} 42. Nf6 {[%emt 0:10:23]} Qd2 {[%emt 0:12:57]} 43.
Qf5+ {[%emt 0:02:05]} Kg7 {[%emt 0:00:08]} 44. Qh7+ {[%emt 0:00:05]} Kf8 {
[%emt 0:00:01]} 45. Qg8+ {[%emt 0:00:08]} Ke7 {[%emt 0:00:01]} 46. Qe8+ {
[%emt 0:00:08]} Kd6 {[%emt 0:00:06]} 47. Ne4+ {[%emt 0:00:06]} Kd5 1-0

[Event "71st RUS-ch Superfinal Women 2021"]
[Site "Ufa"]
[Date "2021.10.14"]
[Round "6.1"]
[White "Ovod, Evgenija"]
[Black "Galliamova, Alisa"]
[Result "1/2-1/2"]
[ECO "C55"]
[WhiteElo "2331"]
[BlackElo "2421"]
[Annotator "ChessBase"]
[PlyCount "100"]
[EventDate "2021.10.09"]
[EventType "tourn"]
[EventCountry "RUS"]
[SourceTitle "playchess.com"]
[Source "ChessBase"]
[SourceQuality "1"]
[TimeControl "40/5400+30:1800+30"]

{[%evp 0,100,19,31,34,19,13,17,4,11,14,21,18,-1,55,22,64,41,31,-13,-32,-29,18,
48,16,35,21,-2,32,21,40,32,81,51,72,50,58,60,70,39,50,45,37,48,47,48,42,47,51,
31,35,36,37,31,56,41,62,80,61,65,65,59,61,63,75,65,58,50,64,50,39,56,54,45,30,
33,23,17,33,23,66,9,0,0,0,0,0,0,-2,-10,-9,-12,-17,-17,-25,-23,0,-23,-23,-27,0,
-27,-27]} 1. e4 {[%emt 0:00:03]} e5 {[%emt 0:00:04]} 2. Nf3 {[%emt 0:00:04]}
Nc6 {[%emt 0:00:06]} 3. Bc4 {[%emt 0:00:06]} Nf6 {[%emt 0:00:07]} 4. d3 {
[%emt 0:00:06]} h6 {[%emt 0:00:19]} 5. O-O {[%emt 0:00:24]} d6 {[%emt 0:00:38]}
6. c3 {[%emt 0:00:15]} g6 {[%emt 0:02:34]} 7. d4 {[%emt 0:00:09]} Qe7 {[%emt 0:
01:37]} 8. Re1 {[%emt 0:08:21]} Bg7 {[%emt 0:02:04]} 9. dxe5 {[%emt 0:03:19]}
Nxe5 {[%emt 0:01:11]} 10. Nxe5 {[%emt 0:01:16]} Qxe5 {[%emt 0:10:27]} 11. Nd2 {
[%emt 0:00:10]} O-O {[%emt 0:00:41]} 12. Nf3 {[%emt 0:08:42]} Qc5 {[%emt 0:00:
29]} 13. Qb3 {[%emt 0:00:37]} c6 {[%emt 0:18:43]} 14. Be3 {[%emt 0:16:24]} Qa5
{[%emt 0:03:12]} 15. Bf4 {[%emt 0:12:08]} b5 {[%emt 0:03:45]} 16. Bf1 {[%emt 0:
08:52]} d5 {[%emt 0:10:03]} 17. exd5 {[%emt 0:05:24]} Nxd5 {[%emt 0:00:09]} 18.
Be5 {[%emt 0:00:05]} Qb6 {[%emt 0:06:30]} 19. c4 {[%emt 0:07:31]} bxc4 {
[%emt 0:01:06]} 20. Bxc4 {[%emt 0:00:07]} Qxb3 {[%emt 0:15:51]} 21. Bxb3 {
[%emt 0:00:10]} Rd8 {[%emt 0:01:16]} 22. Rac1 {[%emt 0:02:52]} Bb7 {[%emt 0:01:
19]} 23. Bxg7 {[%emt 0:09:18]} Kxg7 {[%emt 0:00:05]} 24. Ne5 {[%emt 0:00:08]}
Rac8 {[%emt 0:01:03]} 25. Nd3 {[%emt 0:00:17]} Rc7 {[%emt 0:03:47]} 26. f3 {
[%emt 0:04:02]} Bc8 {[%emt 0:01:44]} 27. Re5 {[%emt 0:01:45]} Be6 {[%emt 0:07:
59]} 28. Nc5 {[%emt 0:00:27]} Kf6 {[%emt 0:00:34]} 29. Nxe6 {[%emt 0:05:08]}
fxe6 {[%emt 0:00:06]} 30. Re4 {[%emt 0:00:04]} g5 {[%emt 0:01:24]} 31. g3 {
[%emt 0:00:19]} Rd6 {[%emt 0:01:12]} 32. Kf2 {[%emt 0:00:31]} Rb7 {[%emt 0:01:
14]} 33. Rd1 {[%emt 0:01:53]} Ke7 {[%emt 0:02:17]} 34. Ke2 {[%emt 0:01:30]} a5
{[%emt 0:00:26]} 35. h4 {[%emt 0:01:04]} Rb5 {[%emt 0:01:00]} 36. hxg5 {
[%emt 0:00:52]} hxg5 {[%emt 0:00:04]} 37. Rd2 {[%emt 0:01:35]} Rb8 {[%emt 0:00:
38]} 38. Ra4 {[%emt 0:02:07]} Rb5 {[%emt 0:01:38]} 39. Re4 {[%emt 0:01:01]} Nc7
{[%emt 0:01:19]} 40. Rxd6 {[%emt 0:00:00]} Kxd6 {[%emt 0:00:00]} 41. f4 {
[%emt 0:09:57]} gxf4 {[%emt 0:03:58]} 42. Rxf4 {[%emt 0:03:50]} Na6 {[%emt 0:
11:54]} 43. Rd4+ {[%emt 0:00:18]} Ke5 {[%emt 0:00:26]} 44. Rc4 {[%emt 0:05:58]}
Nc5 {[%emt 0:01:25]} 45. Bc2 {[%emt 0:00:30]} Kd5 {[%emt 0:05:17]} 46. b3 {
[%emt 0:00:07]} a4 {[%emt 0:01:44]} 47. Rc3 {[%emt 0:00:04]} Kd4 {[%emt 0:03:
40]} 48. Rc4+ {[%emt 0:00:26]} Kd5 {[%emt 0:00:05]} 49. Rc3 {[%emt 0:00:04]}
Kd4 {[%emt 0:00:13]} 50. Rc4+ {[%emt 0:00:19]} Kd5 {[%emt 0:00:04]} 1/2-1/2

[Event "71st RUS-ch Superfinal Women 2021"]
[Site "Ufa"]
[Date "2021.10.14"]
[Round "6.2"]
[White "Bodnaruk, Anastasia"]
[Black "Voit, Daria"]
[Result "1/2-1/2"]
[ECO "B12"]
[WhiteElo "2415"]
[BlackElo "2357"]
[Annotator "ChessBase"]
[PlyCount "79"]
[EventDate "2021.10.09"]
[EventType "tourn"]
[EventCountry "RUS"]
[SourceTitle "playchess.com"]
[Source "ChessBase"]
[SourceQuality "1"]
[TimeControl "40/5400+30:1800+30"]

1. e4 {[%emt 0:00:02]} c6 {[%emt 0:00:03]} 2. d4 {[%emt 0:00:05]} d5 {[%emt 0:
00:03]} 3. e5 {[%emt 0:00:07]} Bf5 {[%emt 0:00:07]} 4. Nf3 {[%emt 0:00:04]} e6
{[%emt 0:00:06]} 5. Be2 {[%emt 0:00:04]} c5 {[%emt 0:00:06]} 6. Be3 {[%emt 0:
01:21]} Qb6 {[%emt 0:00:13]} 7. Nc3 {[%emt 0:00:58]} Nc6 {[%emt 0:00:21]} 8.
Na4 {[%emt 0:01:08]} Qa5+ {[%emt 0:00:41]} 9. c3 {[%emt 0:00:05]} c4 {[%emt 0:
00:26]} 10. Nh4 {[%emt 0:01:39]} Bg6 {[%emt 0:08:48]} 11. b4 {[%emt 0:03:08]}
Qd8 {[%emt 0:00:42]} 12. g3 {[%emt 0:05:16]} b5 {[%emt 0:03:07]} 13. Nc5 {
[%emt 0:04:12]} Bxc5 {[%emt 0:02:18]} 14. bxc5 {[%emt 0:01:13]} Nge7 {[%emt 0:
17:17]} 15. O-O {[%emt 0:06:31]} Rb8 {[%emt 0:06:54]} 16. Qd2 {[%emt 0:07:55]}
b4 {[%emt 0:09:29]} 17. cxb4 {[%emt 0:01:28]} Rxb4 {[%emt 0:00:45]} 18. Nxg6 {
[%emt 0:04:14]} hxg6 {[%emt 0:00:41]} 19. Rab1 {[%emt 0:10:05]} Qb8 {[%emt 0:
13:47]} 20. Rxb4 {[%emt 0:06:04]} Qxb4 {[%emt 0:00:04]} 21. Qxb4 {[%emt 0:00:
32]} Nxb4 {[%emt 0:00:03]} 22. Rb1 {[%emt 0:00:48]} Nec6 {[%emt 0:01:10]} 23.
Bd1 {[%emt 0:09:13]} O-O {[%emt 0:01:36]} 24. Ba4 {[%emt 0:03:11]} Rb8 {
[%emt 0:01:09]} 25. a3 {[%emt 0:09:02]} Na6 {[%emt 0:00:50]} 26. Rxb8+ {
[%emt 0:00:22]} Naxb8 {[%emt 0:00:18]} 27. f4 {[%emt 0:09:50]} a6 {[%emt 0:03:
12]} 28. Kf2 {[%emt 0:01:56]} Na7 {[%emt 0:01:39]} 29. Bd2 {[%emt 0:05:22]}
Nbc6 {[%emt 0:07:21]} 30. Bc3 {[%emt 0:02:15]} Nb5 {[%emt 0:00:16]} 31. Bxb5 {
[%emt 0:00:04]} axb5 {[%emt 0:00:05]} 32. g4 {[%emt 0:00:51]} Kf8 {[%emt 0:10:
06]} 33. h4 {[%emt 0:01:08]} Ke8 {[%emt 0:04:14]} 34. Ke3 {[%emt 0:00:08]} Kd7
{[%emt 0:02:11]} 35. Be1 {[%emt 0:01:12]} Ke8 {[%emt 0:00:59]} 36. Bc3 {
[%emt 0:00:22]} Kd7 {[%emt 0:00:06]} 37. Be1 {[%emt 0:00:04]} Ke8 {[%emt 0:00:
05]} 38. Bc3 {[%emt 0:00:04]} Kd7 {[%emt 0:00:05]} 39. Be1 {[%emt 0:00:14]} Ke8
{[%emt 0:00:08]} 40. Bc3 {[%emt 0:00:00]} 1/2-1/2